[Event "1000GM Summer-II Dual Schev-A 2024"]
[Site "San Jose"]
[Date "2024.07.03"]
[Round "3.5"]
[White "Sanchez, Sebastian Felipe"]
[Black "Arutla, Aditya"]
[Result "1-0"]
[ECO "E11"]
[WhiteElo "2400"]
[BlackElo "2243"]
[Annotator "TA"]
[PlyCount "115"]
[EventDate "2024.06.29"]
[EventType "schev"]
[EventCountry "USA"]
[SourceTitle "playchess.com"]
[Source "ChessBase"]
[SourceQuality "1"]
[TimeControl "5400+30"]

{[%evp 14,115,36,30,31,-2,16,-37,-43,-41,-7,-2,-6,-7,0,0,0,-26,0,0,10,10,31,0,52,46,40,48,56,42,50,39,57,57,102,79,100,2,3,0,0,0,0,0,0,0,47,0,0,0,0,0,2,0,10,5,8,0,0,0,0,0,0,0,0,0,0,0,0,0,0,0,29952,29955,29954,29957,29959,29955,29959,29959,29956,29959,12846,12648,8248,7575,5887,2119,5708,5704,7171,7381,5106,3165,12795,8024,29975,29977,29984,29985,29985,29985,29986,29987]} 1. d4 {[%emt 0:00:21]} Nf6 {[%emt 0:00:07]} 2. c4 {[%emt 0:00:38]} e6 {[%emt 0:00:03]} 3. g3 {[%emt 0:07:15]} d5 {[%emt 0:00:09]} 4. Nf3 {[%emt 0:00:05]} Bb4+ {[%emt 0:00:07]} 5. Bd2 {[%emt 0:00:04]} a5 {[%emt 0:00:03]} 6. Qc2 {[%emt 0:00:07]} O-O {[%emt 0:00:29]} 7. Bg2 {[%emt 0:00:09]} c5 {[%emt 0:00:22] E11: Bogo-Indian.} 8. dxc5 {[%emt 0:01:04]} d4 {[%emt 0:00:29]} 9. O-O {[%emt 0:04:43]} Nc6 {[%emt 0:01:38]} 10. Bf4 {[%emt 0:10:41]} ({Better is} 10. Bxb4 $11 axb4 11. Nbd2) 10... Bxc5 $15 {[%emt 0:01:53]} 11. Nbd2 {[%emt 0:00:10]} Qe7 {[%emt 0:06:00]} (11... Ng4 {keeps more tension.} 12. Nb3 Ba7 13. Bg5 f6) 12. Bg5 {[%emt 0:04:06]} h6 {[%emt 0:03:38]} 13. Bxf6 {[%emt 0:03:21]} Qxf6 {[%emt 0:01:10]} 14. Ne1 {[%emt 0:01:11]} e5 {[%emt 0:05:31]} 15. Nd3 {[%emt 0:00:05]} (15. Ne4 $5 Qe7 $8 16. Nxc5 Qxc5 17. Nd3 $15) 15... Nb4 {[%emt 0:01:53]} 16. Qd1 $146 {[%emt 0:01:31]} ({Predecessor:} 16. Qa4 Nxd3 17. exd3 Qb6 18. Qb5 Qxb5 19. cxb5 Bd7 20. a4 Rab8 21. Nc4 b6 22. Nxe5 Bf5 23. Be4 {½-½ Andreikin,D (2735)-Riazantsev,A (2595) Wch Blitz Almaty 2022 (11)}) 16... Nxd3 {[%emt 0:06:03]} 17. exd3 {[%emt 0:00:21]} Qe7 {[%emt 0:05:33]} 18. Re1 {[%emt 0:04:25]} Bb4 {[%emt 0:07:03]} (18... Qc7 $11) 19. a3 $14 {[%emt 0:11:12]} Bxd2 {[%emt 0:00:17]} 20. Qxd2 {[%emt 0:00:01]} Qc7 {[%emt 0:08:59]} 21. f4 {[%emt 0:10:06]} exf4 {[%emt 0:12:13]} 22. Qxf4 {[%emt 0:01:11]} Qxf4 {[%emt 0:00:13]} 23. gxf4 {[%emt 0:00:02]} Bf5 {[%emt 0:00:42]} 24. Rad1 {[%emt 0:09:01]} Rae8 {[%emt 0:01:36]} 25. Rxe8 {[%emt 0:08:51]} (25. Bxb7 Rxe1+ 26. Rxe1 Rb8 $17) (25. c5 $1 $16) 25... Rxe8 $11 {[%emt 0:00:04]} 26. Bxb7 {[%emt 0:00:03]} Rb8 $1 {[%emt 0:02:22]} 27. Be4 {[%emt 0:02:43]} Bxe4 {[%emt 0:00:42]} 28. dxe4 {[%emt 0:00:02]} Rxb2 {[%emt 0:00:12]} 29. Rxd4 {[%emt 0:00:03]} Rb3 {[%emt 0:08:54]} (29... Kf8 $11) 30. c5 {[%emt 0:00:09]} (30. a4 $1 $14) 30... Rc3 $11 {[%emt 0:00:59]} 31. Rd8+ {[%emt 0:00:50]} Kh7 {[%emt 0:00:02]} 32. Rc8 {[%emt 0:00:08]} Rxa3 {[%emt 0:04:03]} 33. Kf2 {[%emt 0:03:28]} Kg6 {[%emt 0:09:07]} 34. Ke2 {[%emt 0:00:56]} Kf6 {[%emt 0:00:48]} 35. c6 {[%emt 0:03:38]} Rc3 {[%emt 0:03:04]} 36. Kd2 {[%emt 0:00:18]} Rc5 {[%emt 0:00:59]} 37. Kd3 {[%emt 0:00:05]} a4 {[%emt 0:05:56]} 38. Kd4 {[%emt 0:05:39]} Rc2 $1 {[%emt 0:00:16]} 39. Kd5 {[%emt 0:01:34]} a3 {[%emt 0:00:13]} 40. Ra8 {[%emt 0:00:07]} a2 {[%emt 0:00:13]} 41. h4 {[%emt 0:00:15]} h5 {[%emt 0:00:41]} 42. Kd6 {[%emt 0:02:30]} g6 $2 {[%emt 0:00:28][%mdl 8192]} (42... Rd2+ $11 43. Kc5 Rc2+ 44. Kd6 Rd2+ 45. Kc7 Ke7) 43. c7 {[%emt 0:00:40]} Rd2+ {[%emt 0:00:08]} 44. Kc6 {[%emt 0:00:06]} Rc2+ {[%emt 0:00:04]} 45. Kd7 $1 {[%emt 0:00:04]} Rd2+ {[%emt 0:00:08] [#]} 46. Ke8 $1 {[%emt 0:00:06]} Rc2 {[%emt 0:00:41] [#]} 47. Kf8 $1 {[%emt 0:01:42]} (47. c8=B $2 Rxc8+ 48. Rxc8 a1=Q $19 (48... a1=B $2 49. Kf8 $18)) 47... Ke6 {[%emt 0:02:59]} 48. Rxa2 {[%emt 0:00:11]} (48. c8=B+ $2 Rxc8+ 49. Rxc8 a1=Q $19 (49... a1=B $2 50. Re8+ Kd7 51. Kxf7 $18)) 48... Rxc7 {[%emt 0:00:31]} 49. Ra6+ {[%emt 0:00:02]} Kd7 {[%emt 0:00:12]} 50. Kxf7 {[%emt 0:00:06]} (50. e5 $142 g5 51. Rd6+ (51. Kxf7 Kc8+ 52. Kf6 Kb7 $18) 51... Kc8 52. fxg5 (52. hxg5 Kb7 $18)) 50... Rc4 $18 {[%emt 0:00:13]} 51. Re6 {[%emt 0:00:49]} Rd4 {[%emt 0:00:19]} 52. Re5 {[%emt 0:00:15]} (52. Rxg6 Rxe4 53. f5 Rxh4) 52... Ra4 {[%emt 0:00:29]} 53. Kxg6 {[%emt 0:00:09]} Ra1 {[%emt 0:00:09]} 54. Rxh5 {[%emt 0:00:40]} Rh1 {[%emt 0:00:12]} 55. Kf6 {[%emt 0:00:13]} Rh2 {[%emt 0:00:07]} 56. e5 {[%emt 0:00:07]} Re2 {[%emt 0:00:05]} 57. f5 {[%emt 0:00:09]} Re4 {[%emt 0:00:04]} 58. Rh8 {[%emt 0:00:11]} 1-0

[Event "1000GM Summer-II Dual Schev-A 2024"]
[Site "San Jose"]
[Date "2024.07.04"]
[Round "5.1"]
[White "Jimenez Garcia, Emmanuel"]
[Black "Rajaram, Rohan"]
[Result "1-0"]
[ECO "B23"]
[WhiteElo "2370"]
[BlackElo "2062"]
[Annotator "RC"]
[PlyCount "119"]
[EventDate "2024.06.29"]
[EventType "schev"]
[EventCountry "USA"]
[SourceTitle "playchess.com"]
[Source "ChessBase"]
[SourceQuality "1"]
[TimeControl "5400+30"]

1. e4 {[%emt 0:02:13]} c5 {[%emt 0:01:16]} 2. Nc3 {[%emt 0:00:09]} d6 {[%emt 0:00:08]} 3. d4 {[%emt 0:00:09]} cxd4 {[%emt 0:00:05]} 4. Qxd4 {[%emt 0:00:04]} Nc6 {[%emt 0:00:05]} 5. Qd2 {[%emt 0:00:04]} g6 {[%emt 0:00:05]} 6. b3 {[%emt 0:00:06]} Bh6 {[%emt 0:00:04]} 7. f4 {[%emt 0:00:04]} Nf6 {[%emt 0:00:05]} 8. Bb2 {[%emt 0:00:11]} O-O {[%emt 0:00:17]} 9. O-O-O {[%emt 0:01:01]} e5 {[%emt 0:01:02]} 10. g3 {[%emt 0:04:57]} Re8 {[%emt 0:00:14]} 11. Bg2 {[%emt 0:07:13]} Nd4 {[%emt 0:02:43]} 12. Nf3 {[%emt 0:11:57]} Bg4 {[%emt 0:03:54]} 13. Nxd4 {[%emt 0:01:58]} exd4 {[%emt 0:00:56]} 14. Qxd4 {[%emt 0:00:38]} Bxd1 {[%emt 0:00:11]} 15. Rxd1 {[%emt 0:09:57]} Bg7 {[%emt 0:01:09]} 16. Qb4 {[%emt 0:03:25]} Qe7 {[%emt 0:10:22]} 17. Qxd6 {[%emt 0:00:56]} Rad8 {[%emt 0:03:11]} 18. Qxe7 {[%emt 0:00:07]} Rxd1+ {[%emt 0:00:03]} 19. Nxd1 {[%emt 0:04:40]} Rxe7 {[%emt 0:00:05]} 20. e5 {[%emt 0:00:17]} Ne8 {[%emt 0:05:16]} 21. Ne3 {[%emt 0:01:11]} Bf8 {[%emt 0:03:48]} 22. c4 {[%emt 0:09:12]} h5 {[%emt 0:04:11]} 23. Bd4 {[%emt 0:04:46]} b6 {[%emt 0:04:02]} 24. Bc6 {[%emt 0:00:42]} Re6 {[%emt 0:01:30]} 25. Bd7 {[%emt 0:04:56]} Re7 {[%emt 0:00:04]} 26. Bb5 {[%emt 0:03:29]} Ng7 {[%emt 0:03:21]} 27. Nd5 {[%emt 0:00:32]} Rb7 {[%emt 0:00:04]} 28. Ba6 {[%emt 0:06:27]} Rb8 {[%emt 0:00:19]} 29. b4 {[%emt 0:00:23]} Ne6 {[%emt 0:02:51]} 30. Be3 {[%emt 0:00:34]} Rd8 {[%emt 0:03:42]} 31. Kc2 {[%emt 0:01:01]} Kg7 {[%emt 0:00:52]} 32. a3 {[%emt 0:02:00]} Rd7 {[%emt 0:00:47]} 33. Bb5 {[%emt 0:00:28]} Rd8 {[%emt 0:01:04]} 34. h3 {[%emt 0:00:14]} Kh8 {[%emt 0:01:14]} 35. g4 {[%emt 0:00:39]} hxg4 {[%emt 0:00:06]} 36. hxg4 {[%emt 0:00:02]} Bh6 {[%emt 0:00:09]} 37. f5 {[%emt 0:04:17]} Bxe3 {[%emt 0:02:13]} 38. fxe6 {[%emt 0:00:32]} Rxd5 {[%emt 0:02:22]} 39. cxd5 {[%emt 0:00:10]} fxe6 {[%emt 0:00:04]} 40. dxe6 {[%emt 0:00:42]} Bg5 {[%emt 0:00:05]} 41. Kd3 {[%emt 0:00:18]} Be7 {[%emt 0:00:51]} 42. Ba6 {[%emt 0:04:34]} Kg7 {[%emt 0:02:53]} 43. Kd4 {[%emt 0:01:15]} Kf8 {[%emt 0:02:32]} 44. Kd5 {[%emt 0:01:08]} Bg5 {[%emt 0:01:45]} 45. Kd6 {[%emt 0:01:14]} Ke8 {[%emt 0:00:31]} 46. Bd3 {[%emt 0:03:01]} a5 {[%emt 0:02:28]} 47. Bxg6+ {[%emt 0:00:46]} Kf8 {[%emt 0:00:25]} 48. b5 {[%emt 0:03:40]} Be7+ {[%emt 0:03:11]} 49. Kc6 {[%emt 0:00:34]} Bc5 {[%emt 0:00:25]} 50. a4 {[%emt 0:00:16]} Ke7 {[%emt 0:00:56]} 51. Bf7 {[%emt 0:00:49]} Kf8 {[%emt 0:00:19]} 52. g5 {[%emt 0:00:10]} Bd4 {[%emt 0:00:07]} 53. Kd7 {[%emt 0:00:13]} Bc5 {[%emt 0:00:07]} 54. g6 {[%emt 0:00:03]} Bb4 {[%emt 0:00:16]} 55. g7+ {[%emt 0:00:36]} Kxg7 {[%emt 0:00:06]} 56. e7 {[%emt 0:00:02]} Bxe7 {[%emt 0:00:07]} 57. Kxe7 {[%emt 0:00:02]} Kh6 {[%emt 0:00:09]} 58. Kf6 {[%emt 0:00:04]} Kh7 {[%emt 0:00:04]} 59. e6 {[%emt 0:00:05]} Kh6 {[%emt 0:00:03]} 60. e7 {[%emt 0:00:04]} 1-0

[Event "1000GM Summer-II Dual Schev-A 2024"]
[Site "San Jose"]
[Date "2024.07.04"]
[Round "5.2"]
[White "Garduno Huerta, Joshua Emiliano"]
[Black "Dominguez Aguilar, Guillermo"]
[Result "0-1"]
[ECO "A42"]
[WhiteElo "1967"]
[BlackElo "2281"]
[Annotator "TA"]
[PlyCount "102"]
[EventDate "2024.06.29"]
[EventType "schev"]
[EventCountry "USA"]
[SourceTitle "playchess.com"]
[Source "ChessBase"]
[SourceQuality "1"]
[TimeControl "5400+30"]

{[%evp 14,102,72,31,27,29,40,24,26,43,41,40,60,41,38,41,48,33,71,50,207,37,86,31,34,22,10,-13,3,-34,-31,-37,-35,-34,-14,-39,-39,-39,-32,-33,-35,-39,-29,-23,-17,-23,-19,-62,-62,-59,-27,-81,-79,-79,-102,-82,-83,-87,-48,-258,-256,-233,-231,-355,-343,-548,-372,-4091,-1973,-5601,-5406,-5197,-5381,-5422,-5393,-29960,-29964,-29968,-29969,-29968,-29970,-29970,-29971,-29971,-29972,-29968,-29973,-29973,-29973,-29973,-29974]} 1. d4 {[%emt 0:06:20]} g6 {[%emt 0:00:47]} 2. c4 {[%emt 0:00:14]} Bg7 {[%emt 0:00:20]} 3. Nc3 {[%emt 0:00:09]} d6 {[%emt 0:00:21]} 4. e4 {[%emt 0:00:43]} Nc6 {[%emt 0:01:38]} 5. Be3 {[%emt 0:00:16]} e5 {[%emt 0:00:34]} 6. Nge2 {[%emt 0:00:08]} Nh6 {[%emt 0:03:40][%cal Bg8h6,Bh6f5,Bf5d4][%mdl 32]} 7. f3 {[%emt 0:02:03]} f5 {[%emt 0:00:15]} 8. Qd2 {[%emt 0:01:39] Hoping for Bg5.} fxe4 {[%emt 0:04:40]} 9. Nxe4 {[%emt 0:08:01] Bg5 would now be deadly.} Nf5 {[%emt 0:01:24]} 10. Bg5 {[%emt 0:03:13]} Qd7 {[%emt 0:00:57] White has an edge.} 11. d5 {[%emt 0:06:50]} Ncd4 {[%emt 0:01:07]} 12. Nxd4 {[%emt 0:04:26]} Nxd4 {[%emt 0:03:20]} 13. Bd3 {[%emt 0:00:43]} O-O {[%emt 0:04:23][%cal Of8f3]} 14. O-O {[%emt 0:01:43]} Qf7 {[%emt 0:00:46]} 15. Rac1 {[%emt 0:06:31]} (15. f4 $5 exf4 16. Rxf4 $14) 15... b6 {[%emt 0:01:34]} 16. b4 {[%emt 0:05:04]} (16. f4 $5 exf4 17. Rxf4 $14) 16... Bb7 $2 {[%emt 0:02:17] [#]} (16... Bf5 $14) 17. Be3 $2 {[%emt 0:04:56]} (17. f4 $1 $18 {[%cal Rf4e5] Strongly threatening fxe5.} exf4 18. Rxf4) 17... Qe7 {[%emt 0:10:28] [#]} (17... Qd7 $14) 18. Ng5 {[%emt 0:07:31]} (18. Bxd4 $1 $16 exd4 19. Rce1) 18... Bh6 $14 {[%emt 0:06:06]} 19. Rfe1 {[%emt 0:05:01]} a5 {[%emt 0:05:14]} 20. b5 {[%emt 0:02:28]} Rae8 {[%emt 0:01:21]} 21. Bxd4 {[%emt 0:03:09]} Bxg5 {[%emt 0:01:55]} 22. Be3 {[%emt 0:00:06]} Bxe3+ {[%emt 0:00:21]} 23. Qxe3 {[%emt 0:00:10]} Kg7 {[%emt 0:00:33]} 24. Qd2 {[%emt 0:01:15]} Bc8 {[%emt 0:00:21]} 25. Re2 {[%emt 0:00:34]} Qh4 {[%emt 0:01:54]} 26. Re4 {[%emt 0:00:26]} Qf6 {[%emt 0:00:53]} 27. Rce1 {[%emt 0:00:56][%cal Of3f4]} Bf5 {[%emt 0:01:26]} 28. R4e2 {[%emt 0:00:19]} Qh4 {[%emt 0:01:29]} (28... Bxd3 {simplifies} 29. Qxd3 Rf7 30. h3 h5) 29. Qe3 {[%emt 0:07:31]} Re7 {[%emt 0:09:19][%cal Be8e7,Be7f7,Bf7f5,Bf5f4][%mdl 32]} 30. Rd1 {[%emt 0:07:11]} Ref7 {[%emt 0:05:14] Black is more active.} 31. Rde1 {[%emt 0:00:28]} h6 {[%emt 0:02:52]} 32. Kh1 {[%emt 0:06:44]} (32. Bxf5 $11 {remains equal.} Rxf5 33. Qc3) 32... g5 $17 {[%emt 0:08:11]} 33. Bxf5 {[%emt 0:04:14]} Rxf5 {[%emt 0:01:13]} 34. Qd3 {[%emt 0:00:07]} Rf4 {[%emt 0:07:19][%cal Og5g4]} 35. Re4 {[%emt 0:01:22]} Qf2 {[%emt 0:00:27]} 36. Qe2 {[%emt 0:02:01] Black continues to play with concentration.} (36. Qb1 $1 $15) 36... Qxe2 $19 {[%emt 0:00:49]} 37. R1xe2 {[%emt 0:00:06]} g4 {[%emt 0:00:30]} 38. Rxf4 {[%emt 0:04:16]} (38. h3 $142 gxf3 39. gxf3) 38... Rxf4 {[%emt 0:00:20]} 39. Re4 {[%emt 0:00:01]} (39. Rf2 $142) 39... gxf3 {[%emt 0:00:47]} 40. Rxf4 $2 {[%emt 0:00:54]} (40. gxf3 Rxf3 41. c5) 40... exf4 {[%emt 0:00:14]} (40... fxg2+ 41. Kxg2 exf4 42. Kf3 $11) 41. gxf3 {[%emt 0:00:00][%mdl 4096] Endgame. KP-KP} Kf6 {[%emt 0:00:08] And now ...Ke5 would win.} 42. Kg2 {[%emt 0:00:05]} Ke5 {[%emt 0:00:21]} 43. Kh3 {[%emt 0:00:04]} Kd4 {[%emt 0:00:03][%cal Od4e3]} 44. Kg4 {[%emt 0:00:06]} Ke3 {[%emt 0:03:51] Black mates.} (44... Kxc4 45. Kxf4 Kxd5 (45... Kxb5 46. Ke4 $16) 46. h3 $19) 45. h4 {[%emt 0:01:11] [#]} h5+ $1 {[%emt 0:01:15][%mdl 512]} 46. Kxh5 {[%emt 0:00:05]} Kxf3 {[%emt 0:00:03]} 47. Kg6 {[%emt 0:01:56]} Ke4 {[%emt 0:01:28]} 48. h5 {[%emt 0:00:10]} f3 {[%emt 0:00:07]} 49. h6 {[%emt 0:00:02]} f2 {[%emt 0:00:20]} 50. h7 {[%emt 0:00:01]} f1=Q {[%emt 0:00:26]} (50... f1=R $2 {too greedy.} 51. h8=Q $18 (51. h8=R $2 {perishes.} Kd3 $19)) 51. h8=Q {[%emt 0:00:03]} Qf5+ {[%emt 0:00:29] Weighted Error Value: White=0.62/Black=0.15 (very precise) .  Loses game:     	White=1     	---        Missed win:     	White=1     	---        Mistake:       	White=5     	Black=2      Inaccurate:     	White=3     	Black=4      OK:         	White=7     	Black=12     Best:        	---       	Black=3} (51... Qxc4 $2 52. Qg7 $19) 0-1

[Event "1000GM Summer-II Dual Schev-A 2024"]
[Site "San Jose"]
[Date "2024.07.04"]
[Round "5.3"]
[White "Arutla, Aditya"]
[Black "Figueredo Losada, Leonel"]
[Result "1/2-1/2"]
[ECO "B11"]
[WhiteElo "2243"]
[BlackElo "2314"]
[Annotator "TA"]
[PlyCount "57"]
[EventDate "2024.06.29"]
[EventType "schev"]
[EventCountry "USA"]
[SourceTitle "playchess.com"]
[Source "ChessBase"]
[SourceQuality "1"]
[TimeControl "5400+30"]

{[%evp 10,57,31,33,24,27,21,30,42,35,45,54,50,42,46,19,36,41,62,47,50,54,45,59,60,35,25,28,36,25,31,37,88,45,75,42,93,31,73,39,37,0,0,0,0,0,0,0,0,0]} 1. e4 {[%emt 1:31:00]} c6 {[%emt 0:02:19]} 2. Nf3 {[%emt 0:00:00]} d5 {[%emt 0:00:23]} 3. Nc3 {[%emt 0:00:00]} dxe4 {[%emt 0:00:04]} 4. Nxe4 {[%emt 0:00:00]} Nf6 {[%emt 0:00:04]} 5. Qe2 {[%emt 0:00:00]} Nxe4 {[%emt 0:00:05]} 6. Qxe4 {[%emt 0:00:00]} Be6 {[%emt 0:00:04]} 7. b3 {[%emt 0:00:00]} Bd5 {[%emt 0:00:51]} 8. Qe3 {[%emt 0:00:00]} Bxf3 {[%emt 0:02:36] White has an edge.} 9. Qxf3 {[%emt 0:00:00]} e6 {[%emt 0:00:32]} 10. Bb2 {[%emt 0:00:00]} Nd7 {[%emt 0:00:06]} 11. O-O-O {[%emt 0:00:00]} Nf6 {[%emt 0:00:15]} 12. Bc4 {[%emt 0:00:00]} Be7 {[%emt 0:01:06]} 13. g4 {[%emt 0:00:00][%cal Bg2g4,Bg4g5][%mdl 32]} Qa5 {[%emt 0:30:46]} 14. Kb1 {[%emt 0:00:00]} O-O-O {[%emt 0:13:49]} 15. h4 {[%emt 0:00:00] Threatens to win with g5.} Rhf8 {[%emt 0:06:49]} 16. g5 {[%emt 0:00:00]} Ne8 {[%emt 0:00:02]} 17. Rhe1 {[%emt 0:00:00]} g6 {[%emt 0:03:55]} 18. Bc3 {[%emt 0:00:00]} Qc7 {[%emt 0:06:55]} 19. a4 {[%emt 0:00:00]} Nd6 {[%emt 0:00:21]} 20. Bd3 {[%emt 0:00:00]} c5 {[%emt 0:03:43]} (20... Rd7 $14) 21. Be5 {[%emt 0:00:00] White has more active pieces.} Qa5 {[%emt 0:00:20]} 22. Qf4 {[%emt 0:00:00]} Nf5 {[%emt 0:01:02] [#]} (22... a6 $14) 23. h5 {[%emt 0:00:00]} Rd7 {[%emt 0:01:44]} 24. hxg6 {[%emt 0:00:00]} hxg6 {[%emt 0:00:03]} 25. Bb5 {[%emt 0:00:00]} Rd5 {[%emt 0:00:45] The position is equal.} 26. Bc4 {[%emt 0:00:00] This pair of bishops is nice.} Rd7 {[%emt 0:00:24]} 27. Bb5 {[%emt 0:00:00]} Rd5 {[%emt 0:00:05]} 28. Bc4 {[%emt 0:00:00]} Rd7 {[%emt 0:00:05]} 29. Bb5 {[%emt 0:00:00] Weighted Error Value: White=0.14 (very precise) /Black=0.11 (very precise) .  Mistake:       	White=1     	Black=2      Inaccurate:     	White=5     	Black=2      OK:         	White=10    	Black=9} 1/2-1/2

[Event "1000GM Summer-II Dual Schev-A 2024"]
[Site "San Jose"]
[Date "2024.07.04"]
[Round "5.4"]
[White "Fierro Baquero, Martha L."]
[Black "Solis Castro, Angel Alejan"]
[Result "0-1"]
[ECO "A30"]
[WhiteElo "2273"]
[BlackElo "2003"]
[Annotator "TA"]
[PlyCount "86"]
[EventDate "2024.06.29"]
[EventType "schev"]
[EventCountry "USA"]
[SourceTitle "playchess.com"]
[Source "ChessBase"]
[SourceQuality "1"]
[TimeControl "5400+30"]

{[%evp 10,86,25,14,35,20,33,30,49,47,43,42,58,49,51,56,52,52,72,54,72,82,67,75,81,57,52,35,30,0,73,55,54,70,127,76,93,64,135,90,112,104,170,72,75,78,86,76,96,83,74,58,58,0,12,12,7,7,7,6,11,0,8,-72,-56,-310,-305,-314,-308,-298,-304,-391,-269,-475,-464,-504,-500,-493,-483]} 1. c4 {[%emt 0:04:44]} Nf6 {[%emt 0:00:49]} 2. g3 {[%emt 0:00:05]} c5 {[%emt 0:01:13]} 3. Bg2 {[%emt 0:00:09]} Nc6 {[%emt 0:00:19]} 4. Nf3 {[%emt 0:00:25]} e6 {[%emt 0:00:43]} 5. O-O {[%emt 0:00:41]} Be7 {[%emt 0:00:15]} 6. b3 {[%emt 0:01:39]} O-O {[%emt 0:01:13]} 7. Bb2 {[%emt 0:00:17]} a6 {[%emt 0:03:24]} 8. d4 {[%emt 0:04:18]} cxd4 {[%emt 0:01:05] White has an edge.} 9. Nxd4 {[%emt 0:00:04]} Qb6 {[%emt 0:00:23]} 10. e4 {[%emt 0:10:27]} d6 {[%emt 0:00:58]} 11. Nc2 {[%emt 0:07:32]} Bd7 {[%emt 0:02:43]} 12. Nc3 {[%emt 0:01:14]} Rfc8 {[%emt 0:01:26]} 13. Kh1 {[%emt 0:17:48]} Ne5 {[%emt 0:02:35]} 14. Ne3 {[%emt 0:03:02]} Bc6 {[%emt 0:12:37]} 15. Qe2 {[%emt 0:00:43]} Qa5 {[%emt 0:04:23]} 16. f4 {[%emt 0:06:00]} Ng6 {[%emt 0:03:39]} 17. Nc2 {[%emt 0:00:04]} b5 {[%emt 0:03:13]} 18. cxb5 {[%emt 0:12:24]} axb5 {[%emt 0:01:07]} 19. Nd4 {[%emt 0:00:11][%cal Od4c6] And now Nxc6! would win.} Bb7 {[%emt 0:17:01]} (19... b4 $11 20. Nxc6 Rxc6) 20. Ncxb5 {[%emt 0:03:57] Black must now prevent a4.} (20. Qxb5 {simplifies} Qxb5 21. Ndxb5 e5 22. f5) 20... e5 $1 {[%emt 0:09:20]} 21. Nf5 {[%emt 0:02:59]} Ba6 {[%emt 0:00:11] [#]} (21... Bxe4 $1 $14 22. Bxe4 Nxe4) 22. Nxe7+ {[%emt 0:04:19]} (22. Nfxd6 $2 Bxd6 23. a4 Qb4 $19 (23... exf4 24. e5 $14)) (22. a4 $142 $1) 22... Nxe7 $16 {[%emt 0:00:02]} 23. a4 {[%emt 0:00:03]} (23. fxe5 $2 Bxb5 24. Qf2 Bxf1 25. Bxf1 dxe5 $19 (25... Nxe4 $2 26. Qe2 $19)) 23... Nc6 {[%emt 0:04:42]} (23... Ng6 $1 $14) 24. Rad1 {[%emt 0:05:37]} Qb4 {[%emt 0:05:32]} 25. Qc4 {[%emt 0:03:08]} (25. Rxd6 Qxd6 (25... Qxb3 $2 26. fxe5 Ne8 27. Rd7 $18) 26. fxe5 Nxe5 (26... Bxb5 27. Qxb5 Nxe5 28. Qxe5 $11) 27. Nxd6 Bxe2 $15) (25. Qf3 {simplifies} Bxb5 26. axb5 Qxb5 27. Rxd6 Re8 28. Rfd1) 25... Ng4 {[%emt 0:02:14]} (25... Qxc4 $16 26. bxc4 Ne8) 26. fxe5 {[%emt 0:03:38]} (26. Rxd6 $6 Qxd6 27. Nxd6 Bxc4 28. Nxc4 Rab8 $11) (26. Qxb4 $18 {is more deadly.} Nxb4 27. Rxd6) 26... Qxc4 {[%emt 0:01:37]} 27. bxc4 {[%emt 0:00:03] Threatens to win with e6.} Ncxe5 {[%emt 0:03:02]} 28. Nxd6 {[%emt 0:02:04]} (28. Rxd6 $6 Nxc4 (28... Rxc4 29. h3 $14) 29. e5 Nxd6 (29... Nxb2 30. Rb1 $11) 30. exd6 Rab8 $15) 28... Rcb8 {[%emt 0:00:22]} 29. Bxe5 {[%emt 0:01:28]} Nxe5 {[%emt 0:00:03][%cal Bg4e5,Be5c4,Bc4e3][%mdl 32]} 30. Nb5 {[%emt 0:00:04]} Nxc4 {[%emt 0:02:01][%cal Oc4e3] Strongly threatening ...Ne3!} 31. Nc7 {[%emt 0:01:06]} (31. e5 $14 Ne3 32. Bxa8 Rxa8 33. Kg1) 31... Ra7 {[%emt 0:00:31]} 32. Nxa6 {[%emt 0:00:43]} Rxa6 {[%emt 0:00:02]} 33. Rb1 {[%emt 0:00:31]} Rd8 {[%emt 0:05:59]} 34. Rb4 {[%emt 0:02:36]} Ne3 {[%emt 0:00:13]} 35. Rc1 {[%emt 0:00:39]} g6 {[%emt 0:01:17]} 36. Bf3 {[%emt 0:01:11] [#]} (36. e5 $11) 36... Rf6 $1 $17 {[%emt 0:00:47][%cal Od8d2] ...Rd2! would now be deadly. Black is more active.} 37. a5 $2 {[%emt 0:02:25][%mdl 8192] This move loses the game for White.} Rxf3 $19 {[%emt 0:00:33]} 38. a6 {[%emt 0:00:03] aiming for a7.} Ra8 {[%emt 0:01:05]} 39. Ra4 {[%emt 0:00:54]} Ra7 {[%emt 0:03:37]} 40. Kg1 {[%emt 0:00:38]} Rf6 {[%emt 0:00:35]} 41. Ra3 $2 {[%emt 0:00:31]} (41. Re1 {only move.} Nc2 (41... Rfxa6 42. Rxa6 Rxa6 43. Rxe3 $11) 42. Re2) 41... Ng4 {[%emt 0:00:25] Black is clearly winning.} ({Inferior is} 41... Rfxa6 42. Rxe3 Ra5 43. e5 $11) 42. Rca1 {[%emt 0:00:04]} Re6 {[%emt 0:02:19]} 43. Ra4 {[%emt 0:00:47]} Nf6 {[%emt 0:00:13] Weighted Error Value: White=0.39/Black=0.17 (very precise) .  Loses game:     	White=1     	---        Mistake:       	White=5     	Black=4      Inaccurate:     	White=2     	Black=1      OK:         	White=12    	Black=9      Best:        	---       	Black=3      Strong:       	---       	Black=2} 0-1